fUST/lending_fUST_20250929
["ID","MTS","AMOUNT","RATE_DAILY","PERIOD"]
[388398149,1759155047423,-600.59,0.00025224,2]
[388398151,1759155047433,-480.0,0.00025224,2]
[388398152,1759155047442,-480.0,0.00025224,2]
[388398154,1759155047451,-480.0,0.00025224,2]
[388398155,1759155047460,-1710.73,0.00025224,2]
[388398157,1759155047470,-1710.73,0.00025224,2]
[388398158,1759155047479,-1710.73,0.00025224,2]
[388398160,1759155047488,-1646.62,0.00025224,2]
[388398161,1759155047498,-480.0,0.00025225,2]
[388398163,1759155047507,-480.0,0.00025225,2]
[388398165,1759155047516,-1185.33,0.00025225,2]
[388398166,1759155047525,-500.0,0.00025225,2]
[388398168,1759155047535,-480.0,0.00025225,2]
[388398169,1759155047545,-480.0,0.00025225,2]
[388398171,1759155047556,-480.0,0.00025225,2]
[388398172,1759155047566,-2574.57,0.00025225,2]
[388398174,1759155047576,-1710.73,0.00025225,2]
[388398175,1759155047585,-1710.73,0.00025225,2]
[388398177,1759155047595,-1066.77,0.00025225,2]
[388398179,1759155047605,-827.7,0.00025225,2]
[388398180,1759155047615,-898.77,0.00025225,2]
[388398182,1759155047624,-794.09,0.00025225,2]
[388398183,1759155047634,-2420.4,0.00025225,2]
[388398185,1759155047643,-754.96,0.00025225,2]
[388398187,1759155047658,-814.19,0.00025225,2]
[388398188,1759155047667,-678.39,0.00025225,2]
[388398190,1759155047678,-480.0,0.00025225,2]
[388398191,1759155047687,-746.21,0.00025225,2]
[388398193,1759155047698,-1399.28,0.00025225,2]
[388398195,1759155047708,-480.0,0.00025225,2]
[388398196,1759155047717,-763.0,0.00025225,2]
[388398198,1759155047727,-480.0,0.00025225,2]
[388398199,1759155047736,-480.0,0.00025225,2]
[388398201,1759155047745,-480.0,0.00025225,2]
[388398203,1759155047754,-984.32,0.00025225,2]
[388398204,1759155047763,-2426.77,0.00025225,2]
[388398206,1759155047773,-589.3,0.00025225,2]
[388398207,1759155047782,-480.0,0.00025225,2]
[388398209,1759155047791,-646.78,0.00025225,2]
[388398211,1759155047801,-480.0,0.00025225,2]
[388398212,1759155047811,-691.06,0.00025227,2]
[388398214,1759155047820,-480.0,0.00025227,2]
[388398215,1759155047829,-509.57,0.00025227,2]
[388398217,1759155047838,-647.62,0.00025227,2]
[388398218,1759155047847,-666.94197745,0.00025227,5]
[388398220,1759155047856,-1710.73,0.00025263,2]
[388398223,1759155048018,-500.0,0.00025273,2]
[388398224,1759155048032,-500.0,0.00025273,2]
[388398225,1759155048042,-500.0,0.00025273,2]
[388398226,1759155048053,-500.0,0.00025273,2]
[388398227,1759155048064,-500.0,0.00025273,2]
[388398228,1759155048076,-500.0,0.00025273,2]
[388398229,1759155048086,-634.76196504,0.00025273,2]
[388398230,1759155048096,-151.0,0.000253,15]
[388398231,1759155048119,-151.0,0.000253,20]
[388398232,1759155048131,-151.0,0.000253,17]
[388398233,1759155048142,-1710.73,0.00025314,2]
[388398234,1759155048154,-603.18,0.00025315,2]
[388398235,1759155048165,-480.0,0.00025315,2]
[388398236,1759155048175,-480.0,0.00025315,2]
[388398237,1759155048186,-480.0,0.00025315,2]
[388398238,1759155048197,-725.38,0.00025315,2]
[388398239,1759155048208,-480.0,0.00025315,2]
[388398240,1759155048218,-480.0,0.00025315,2]
[388398241,1759155048230,-480.0,0.00025315,2]
[388398242,1759155048241,-480.0,0.00025315,2]
[388398243,1759155048251,-482.72,0.00025315,2]
[388398244,1759155048262,-480.0,0.00025315,2]
[388398245,1759155048272,-481.6,0.00025315,2]
[388398246,1759155048283,-810.96,0.00025315,2]
[388398247,1759155048294,-480.0,0.00025315,2]
[388398248,1759155048307,-480.0,0.00025315,2]
[388398249,1759155048317,-480.0,0.00025315,2]
[388398250,1759155048328,-734.96,0.00025315,2]
[388398251,1759155048339,-662.4,0.00025315,2]
[388398252,1759155048350,-845.4,0.00025315,2]
[388398253,1759155048360,-480.0,0.00025315,2]
[388398254,1759155048371,-480.0,0.00025315,2]
[388398255,1759155048382,-2577.11,0.00025315,2]
[388398256,1759155048392,-731.32,0.00025315,2]
[388398257,1759155048402,-480.0,0.00025315,2]
[388398258,1759155048413,-677.86,0.00025315,2]
[388398259,1759155048423,-1053.43,0.00025315,2]
[388398260,1759155048434,-1598.5928227,0.00025316,2]
[388398261,1759155048444,-127.43265848,0.00025325,2]
[388398262,1759155048467,-924.6388807,0.00025325,2]
[388398263,1759155048479,-658.65846082,0.00025325,2]
[388398264,1759155048489,-1710.73,0.00025325,2]
[388398265,1759155048499,-480.0,0.00025326,2]
[388398266,1759155048509,-480.0,0.00025326,2]
[388398267,1759155048519,-480.0,0.00025326,2]
[388398268,1759155048529,-480.0,0.00025326,2]
[388398269,1759155048539,-480.0,0.00025326,2]
[388398270,1759155048549,-200.0,0.00025326,2]
[388398271,1759155048562,-581.79,0.00025326,2]
[388398272,1759155048572,-480.0,0.00025326,2]
[388398273,1759155048582,-486.72,0.00025326,2]
[388398274,1759155048593,-532.14,0.00025326,2]
[388398275,1759155048603,-480.0,0.00025326,2]
[388398277,1759155048613,-480.0,0.00025326,2]
[388398279,1759155048623,-480.0,0.00025326,2]
[388398281,1759155048632,-480.0,0.00025326,2]
[388398283,1759155048643,-851.85,0.00025326,2]
[388398285,1759155048654,-480.0,0.00025326,2]
[388398286,1759155048667,-480.0,0.00025326,2]
[388398289,1759155048679,-624.92,0.00025326,2]
[388398290,1759155048688,-645.43,0.00025326,2]
[388398292,1759155048699,-441.9815699,0.00025326,2]
[388398314,1759155048908,1048.50319336,0.00023062,2]
[388398317,1759155048932,3951.49680664,0.00023062,2]
[388398323,1759155048994,2038.83870027,0.00019178,2]
[388398344,1759155049209,173.9715,0.00024367,2]
[388398352,1759155049272,-162.43243177,0.00025097,2]
[388398358,1759155049323,-495.85756823,0.00025097,2]
[388398360,1759155049333,-628.26337306,0.00025114,2]
[388398361,1759155049343,-524.72,0.00025179,3]
[388398363,1759155049352,-480.0,0.00025199,2]
[388398365,1759155049362,-480.0,0.00025199,2]
[388398367,1759155049371,-38.0184301,0.00025326,2]
[388398369,1759155049381,-1584.19,0.00025326,2]
[388398372,1759155049391,-537.42,0.00025326,2]
[388398373,1759155049400,-606.73,0.00025326,2]
[388398375,1759155049409,-500.0,0.00025326,2]
[388398377,1759155049419,-593.77,0.00025326,2]
[388398379,1759155049429,-480.0,0.00025326,2]
[388398381,1759155049439,-480.0,0.00025326,2]
[388398383,1759155049449,-480.0,0.00025326,2]
[388398385,1759155049459,-480.0,0.00025326,2]
[388398387,1759155049468,-708.03,0.00025326,2]
[388398389,1759155049478,-480.0,0.00025326,2]
[388398391,1759155049488,-621.89,0.00025326,2]
[388398393,1759155049498,-487.32,0.00025326,2]
[388398395,1759155049508,-635.59,0.00025326,2]
[388398397,1759155049518,-504.1,0.00025326,2]
[388398399,1759155049527,-653.43,0.00025326,2]
[388398401,1759155049537,-480.0,0.00025326,2]
[388398403,1759155049546,-480.0,0.00025326,2]
[388398405,1759155049556,-480.0,0.00025326,2]
[388398407,1759155049565,-480.0,0.00025326,2]
[388398409,1759155049575,-480.0,0.00025326,2]
[388398411,1759155049584,-480.0,0.00025326,2]
[388398413,1759155049593,-480.0,0.00025326,2]
[388398415,1759155049602,-480.0,0.00025326,2]
[388398417,1759155049612,-480.0,0.00025326,2]
[388398418,1759155049621,-480.0,0.00025326,2]
[388398420,1759155049631,-628.03,0.00025326,2]
[388398422,1759155049641,-480.0,0.00025326,2]
[388398424,1759155049655,-735.63,0.00025326,2]
[388398426,1759155049665,-480.0,0.00025326,2]
[388398428,1759155049675,-480.0,0.00025326,2]
[388398430,1759155049684,-480.0,0.00025326,2]
[388398432,1759155049695,-480.0,0.00025326,2]
[388398434,1759155049705,-1583.02,0.00025326,2]
[388398436,1759155049714,-480.0,0.00025326,2]
[388398438,1759155049724,-480.0,0.00025326,2]
[388398440,1759155049735,-480.0,0.00025326,2]
[388398442,1759155049744,-480.0,0.00025326,2]
[388398444,1759155049754,-480.0,0.00025326,2]
[388398446,1759155049764,-612.75,0.00025326,2]
[388398448,1759155049774,-482.48613181,0.00025326,2]
[388398450,1759155049784,-480.0,0.00025326,2]
[388398452,1759155049793,-1146.98,0.00025326,2]
[388398454,1759155049803,-514.10939813,0.00025326,2]
[388398456,1759155049814,-1423.98,0.00025326,2]
[388398458,1759155049823,-480.0,0.00025326,2]
[388398460,1759155049833,-276.0721515,0.00025326,2]
[388398462,1759155049843,-688.65,0.00025326,2]
[388398463,1759155049852,-480.0,0.00025326,2]
[388398466,1759155049863,-675.43,0.00025326,2]
[388398468,1759155049873,-503.44,0.00025326,2]
[388398469,1759155049883,-480.0,0.00025326,2]
[388398471,1759155049893,-558.76,0.00025326,2]
[388398473,1759155049902,-480.0,0.00025326,2]
[388398476,1759155049912,-480.0,0.00025326,2]
[388398478,1759155049922,-480.0,0.00025326,2]
[388398479,1759155049932,-480.0,0.00025326,2]
[388398481,1759155049942,-562.83,0.00025326,2]
[388398483,1759155049951,-692.68,0.00025326,2]
[388398485,1759155049961,-543.98,0.00025326,2]
[388398487,1759155049971,-569.04,0.00025326,2]
[388398489,1759155049981,-480.0,0.00025326,2]
[388398491,1759155049993,-480.0,0.00025326,2]
[388398493,1759155050003,-480.0,0.00025326,2]
[388398495,1759155050013,-480.0,0.00025326,2]
[388398497,1759155050023,-480.0,0.00025326,2]
[388398499,1759155050032,-480.0,0.00025326,2]
[388398501,1759155050042,-480.0,0.00025326,2]
[388398503,1759155050051,-480.0,0.00025326,2]
[388398505,1759155050062,-480.0,0.00025326,2]
[388398507,1759155050072,-813.92,0.00025326,2]
[388398509,1759155050082,-480.0,0.00025326,2]
[388398511,1759155050091,-480.0,0.00025326,2]
[388398513,1759155050101,-480.0,0.00025326,2]
[388398515,1759155050110,-480.0,0.00025326,2]
[388398517,1759155050120,-594.89,0.00025326,2]
[388398519,1759155050130,-480.0,0.00025326,2]
[388398521,1759155050142,-480.0,0.00025326,2]
[388398523,1759155050152,-483.48290089,0.00025326,2]
[388398525,1759155050161,-480.0,0.00025326,2]
[388398527,1759155050173,-480.0,0.00025326,2]
[388398529,1759155050183,-670.73,0.00025326,2]
[388398531,1759155050192,-480.0,0.00025326,2]
[388398533,1759155050202,-480.0,0.00025326,2]
[388398535,1759155050211,-480.0,0.00025326,2]
[388398537,1759155050221,-480.0,0.00025326,2]
[388398539,1759155050230,-651.67,0.00025326,2]
[388398541,1759155050240,-550.26,0.00025326,2]
[388398543,1759155050250,-480.0,0.00025326,2]
[388398545,1759155050259,-480.0,0.00025326,2]
[388398547,1759155050269,-493.53,0.00025326,2]
[388398549,1759155050278,-480.0,0.00025326,2]
[388398551,1759155050288,-281.18554396,0.00025333,2]
[388398553,1759155050297,-1710.73,0.00025334,2]
[388398555,1759155050307,-1710.73,0.00025334,2]
[388398556,1759155050317,-520.0,0.00025335,3]
[388398559,1759155050326,-480.0,0.00025335,2]
[388398560,1759155050336,-151.0,0.00025337,2]
[388398562,1759155050345,-151.0,0.00025337,2]
[388398564,1759155050354,-151.0,0.00025337,2]
[388398566,1759155050364,-500.0,0.00025337,2]
[388398568,1759155050374,-151.0,0.00025337,2]
[388398571,1759155050384,-151.0,0.00025337,2]
[388398573,1759155050393,-151.0,0.00025337,2]
[388398574,1759155050403,-151.0,0.00025337,2]
[388398582,1759155050466,-151.0,0.00025337,2]
[388398584,1759155050475,-261.59402582,0.00025337,2]
[388398586,1759155050484,-279.90410908,0.00025337,2]
[388398588,1759155050494,-151.0,0.00025337,2]
[388398590,1759155050503,-151.0,0.00025337,2]
[388398592,1759155050512,-500.0,0.00025337,2]
[388398594,1759155050521,-1262.0,0.00025337,2]
[388398596,1759155050530,-151.76086571,0.00025337,2]
[388398597,1759155050540,-151.0,0.00025337,2]
[388398599,1759155050549,-500.0,0.00025337,2]
[388398601,1759155050560,-500.0,0.00025337,2]
[388398603,1759155050570,-151.0,0.00025337,2]
[388398605,1759155050580,-500.0,0.00025337,2]
[388398607,1759155050590,-151.43081971,0.00025337,2]
[388398609,1759155050599,-230.72129692,0.00025337,2]
[388398611,1759155050609,-276.75784221,0.00025337,2]
[388398613,1759155050619,-151.0,0.00025337,2]
[388398615,1759155050628,-151.0,0.00025337,2]
[388398617,1759155050637,-167.86215425,0.00025337,2]
[388398619,1759155050648,-151.0,0.00025337,2]
[388398621,1759155050659,-500.0,0.00025337,2]
[388398623,1759155050669,-500.0,0.00025337,2]
[388398625,1759155050679,-500.0,0.00025337,2]
[388398627,1759155050688,-151.0,0.00025337,2]
[388398629,1759155050697,-151.0,0.00025337,2]
[388398631,1759155050707,-151.0,0.00025337,2]
[388398633,1759155050717,-500.0,0.00025337,2]
[388398635,1759155050727,-151.0,0.00025337,2]
[388398637,1759155050736,-151.0,0.00025337,2]
[388398639,1759155050746,-500.0,0.00025337,2]
[388398641,1759155050755,-151.0,0.00025337,2]
[388398642,1759155050763,-500.0,0.00025337,2]
[388398644,1759155050772,-151.0,0.00025337,2]
[388398646,1759155050782,-151.13064371,0.00025337,2]
[388398648,1759155050791,-500.0,0.00025337,2]
[388398650,1759155050800,-151.0,0.00025337,2]
[388398652,1759155050810,-151.0,0.00025337,2]
[388398654,1759155050819,-1710.73,0.00025343,2]
[388398656,1759155050828,-799.29641135,0.00025344,2]
[388398658,1759155050838,-6197.28490914,0.00025354,2]
[388398660,1759155050847,-1710.73,0.00025363,2]
[388398662,1759155050857,-160.0,0.00025368,4]
[388398664,1759155050867,-687.12,0.00025371,2]
[388398666,1759155050876,-1086.36,0.00025371,2]
[388398668,1759155050885,-1608.21,0.00025371,2]
[388398670,1759155050895,-916.16,0.00025371,2]
[388398672,1759155050905,-3424.47,0.00025371,2]
[388398674,1759155050914,-480.0,0.00025371,2]
[388398676,1759155050924,-480.0,0.00025371,2]
[388398677,1759155050933,-6124.65,0.00025371,2]
[388398679,1759155050942,-480.0,0.00025371,2]
[388398681,1759155050951,-480.0,0.00025371,2]
[388398683,1759155050961,-733.47,0.00025371,2]
[388398685,1759155050970,-480.0,0.00025371,2]
[388398687,1759155050979,-480.0,0.00025371,2]
[388398689,1759155050988,-5926.74,0.00025371,2]
[388398691,1759155050998,-480.0,0.00025371,2]
[388398693,1759155051007,-1576.7,0.00025371,2]
[388398695,1759155051016,-738.61,0.00025371,2]
[388398696,1759155051025,-618.59,0.00025371,2]
[388398698,1759155051035,-696.98,0.00025371,2]
[388398700,1759155051044,-2366.21,0.00025371,2]
[388398702,1759155051053,-480.0,0.00025371,2]
[388398704,1759155051064,-480.0,0.00025371,2]
[388398706,1759155051076,-480.0,0.00025371,2]
[388398709,1759155051087,-632.75,0.00025371,2]
[388398710,1759155051097,-658.29,0.00025371,2]
[388398711,1759155051106,-1710.73,0.00025372,2]
[388398713,1759155051115,-1710.73,0.00025372,2]
[388398715,1759155051124,-1710.73,0.00025372,2]
[388398716,1759155051134,-1710.73,0.00025372,2]
[388398718,1759155051143,-1710.8579087,0.00025372,2]
[388398720,1759155051153,-480.0,0.00025372,2]
[388398722,1759155051162,-500.0,0.00025373,2]
[388398724,1759155051172,-433.08681473,0.00025373,2]
[388398726,1759155051181,-504.01475569,0.00025373,2]
[388398728,1759155051191,-500.0,0.00025373,2]
[388398730,1759155051199,-500.0,0.00025373,2]
[388398731,1759155051209,-500.0,0.00025373,2]
[388398733,1759155051218,-480.0,0.00025373,2]
[388398735,1759155051228,-480.0,0.00025373,2]
[388398737,1759155051238,-480.0,0.00025373,2]
[388398739,1759155051247,-480.0,0.00025373,2]
[388398741,1759155051256,-606.62,0.00025373,2]
[388398743,1759155051265,-500.0,0.00025374,5]
[388398745,1759155051276,-799.29641135,0.00025388,2]
[388398747,1759155051287,-460.62084668,0.00025398,2]
[388398748,1759155051297,-480.0,0.00025398,2]
[388398750,1759155051307,-480.0,0.00025398,2]
[388398752,1759155051316,-480.0,0.00025398,2]
[388398754,1759155051326,-480.0,0.00025398,2]
[388398756,1759155051336,-480.0,0.00025398,2]
[388398758,1759155051345,-493.75,0.00025398,2]
[388398760,1759155051355,-480.0,0.00025398,2]
[388398762,1759155051364,-480.0,0.00025398,2]
[388398763,1759155051374,-1162.51,0.00025398,2]
[388398765,1759155051383,-2834.19,0.00025398,2]
[388398767,1759155051393,-599.7,0.00025398,2]
[388398769,1759155051403,-99.55827896,0.00025398,2]
[388398842,1759155052567,3835.70299309,0.00024228,2]
[388398846,1759155052593,6888.29882211,0.00024228,2]
[388399270,1759155058519,5000.0,0.0002494,2]
[388399324,1759155062443,1820.720345,0.00024225,2]
[388399325,1759155066974,3179.289655,0.0002494,2]
[388399326,1759155067000,1820.710345,0.0002494,2]
[388399327,1759155068187,-250.69586913,0.0002499,10]
[388399328,1759155076795,-171.56562885,0.0002499,10]
[388399329,1759155082885,5000.0,0.0002494,2]
[388399330,1759155091609,300.0,0.0002494,2]
[388399331,1759155091635,3179.299655,0.0002494,2]
[388399332,1759155091661,1520.700345,0.0002494,2]
[388399333,1759155107221,5000.0,0.0002494,2]
[388399334,1759155113332,1362.31189103,0.000249,2]
[388399335,1759155114456,622.5488356,0.0002409,2]
[388399336,1759155115218,5000.0,0.0002494,2]
[388399337,1759155121165,-2426.15,0.0002499,3]
[388399338,1759155121189,-1213.08,0.0002499,3]
[388399339,1759155121213,-606.54,0.0002499,3]
[388399340,1759155121236,-303.27,0.0002499,3]
[388399341,1759155121260,-151.63,0.0002499,3]
[388399342,1759155121284,-320.16,0.0002499,3]
[388399343,1759155121308,-621.3,0.0002499,10]
[388399344,1759155121332,-300.0,0.00024999,2]
[388399345,1759155121358,-194057.87,0.00025,2]
[388399346,1759155131328,5000.0,0.00024953,2]
[388399347,1759155139332,203.45255763,0.00024953,2]
[388399348,1759155139356,0.01,0.00024953,2]
[388399349,1759155139381,4796.53744237,0.00024953,2]
[388399350,1759155147698,5000.0,0.00024953,2]
[388399351,1759155155832,203.47255763,0.00024953,2]
[388399352,1759155155857,4796.52744237,0.00024953,2]
[388399353,1759155159779,-1338.3,0.0002499,3]
[388399354,1759155164541,4138.87381022,0.00024953,2]
[388399355,1759155172543,437.18584574,0.00024953,2]
[388399356,1759155180940,5000.0,0.00024953,2]
[388399357,1759155187712,200.0,0.00024658,15]
[388399358,1759155195117,666.0,0.00024046,2]
[388399359,1759155203868,3696.82415426,0.00024953,2]
[388399360,1759155203895,1303.17584574,0.00024953,2]
[388399362,1759155222377,156.02616592,0.00024898,2]
[388399363,1759155227139,5000.0,0.00024953,2]
[388399364,1759155227355,156.0261659,0.00024899,2]
[388399365,1759155232321,156.0261659,0.000249,2]
[388399366,1759155250094,3228.75565654,0.00024953,2]
[388399367,1759155250118,1771.24434346,0.00024953,2]
[388399368,1759155271928,298.23,0.000248,2]
[388399369,1759155272194,150.0,0.000244,2]
[388399370,1759155273080,5000.0,0.00024953,2]
[388399371,1759155276723,1448.5916827,0.00023994,2]
[388399372,1759155295692,1331.94397384,0.00024953,2]
[388399373,1759155295717,3668.05602616,0.00024953,2]
[388399374,1759155304360,187.15036871,0.0002491,2]
[388399375,1759155307316,152.7127115,0.00024504,2]
[388399376,1759155311577,1192.02290466,0.00024888,2]
[388399377,1759155313092,747.85287337,0.0002491,2]
[388399378,1759155327387,-425.68279605,0.00023749,2]
[388399379,1759155334912,-300.0,0.00023749,2]
[388399380,1759155335627,297.0,9.3e-07,2]
[388399381,1759155336541,-222.55775152,0.00023749,2]
[388399382,1759155340672,-300.0,0.00023749,2]
[388399383,1759155342892,-236.54838973,0.00023749,2]
[388399384,1759155345634,-160.0,0.00023749,2]
[388399385,1759155347698,-270.35204766,0.00023749,2]
[388399386,1759155350673,-203.45255763,0.00023749,2]
[388399387,1759155363249,-300.0,0.00023749,2]
[388399388,1759155372153,503.45255763,0.00023401,2]
[388399389,1759155376135,-470.15969844,0.00023749,2]
[388399390,1759155379717,-458.65792602,0.00023749,2]
[388399391,1759155382408,-159.2550529,0.00023749,2]
[388399392,1759155384783,-784.892767,0.00023749,2]
[388399393,1759155388442,-152.0,0.00023749,2]
[388399394,1759155390024,-170.67103699,0.00023749,2]
[388399395,1759155391710,-190.70646133,0.00023749,2]
[388399396,1759155394174,-195.06351473,0.00023749,2]
[388399397,1759155394197,-207.93648527,0.00023989,2]
[388399398,1759155395396,152.0,0.00023401,2]
[388399399,1759155395432,183.292344,0.00024086,120]
[388399400,1759155396903,-406.29353867,0.00023989,2]
[388399401,1759155398519,-194.18492209,0.00023989,2]
[388399402,1759155403998,458.65792602,0.00023401,2]
[388399403,1759155411960,5000.0,0.00023401,2]
[388399404,1759155418077,-220.18741501,0.000237,2]
[388399405,1759155419670,-79.81258499,0.000237,2]
[388399406,1759155419696,-151.23295247,0.000237,2]
[388399407,1759155419930,414.3723371,0.00023401,2]
[388399408,1759155423056,-148.76704753,0.000237,2]
[388399409,1759155423083,-413.25000565,0.00023989,2]
[388399410,1759155426884,-597.13878956,0.00023989,2]
[388399411,1759155429629,-480.0,0.00023989,2]
[388399412,1759155433699,-203.56282027,0.00023989,2]
[388399413,1759155437398,-243.56662982,0.00023749,2]
[388399414,1759155439048,-529.50102653,0.00023749,2]
[388399415,1759155441590,-480.0,0.00023749,2]
[388399416,1759155443839,-300.0,0.00023749,2]
[388399417,1759155443869,2846.83185682,0.00023401,2]
[388399418,1759155446040,-1023.76387337,0.00023749,2]
[388399419,1759155448220,-264.04548125,0.00023749,2]
[388399420,1759155449694,-489.92513588,0.00023749,2]
[388399421,1759155452432,-184.7570488,0.00023749,2]
[388399422,1759155454433,-296.44784416,0.00023749,2]
[388399423,1759155455851,7718.1416715,0.00023371,2]
[388399424,1759155456562,-480.0,0.00023749,2]
[388399425,1759155460175,-483.58685742,0.00023749,2]
[388399426,1759155466721,-224.40610277,0.00023749,2]
[388399427,1759155466743,-276.95595076,0.00023989,2]
[388399428,1759155466818,3852.07011425,0.00023401,2]
[388399429,1759155490562,480.0,0.00023401,2]
[388399430,1759155537821,786.0937426,0.00023176,2]
[388399431,1759155538976,-480.0,0.00023749,2]
[388399432,1759155541379,-189.3309625,0.00023749,2]
[388399433,1759155553328,150.0,0.000234,2]
[388399439,1759155616147,-4330.6690375,0.00023749,2]
[388399440,1759155616176,-154.35,0.000238,2]
[388399441,1759155616206,-160.0,0.00023826,3]
[388399442,1759155616405,-1043.02004156,0.000239,2]
[388399443,1759155616437,-300.0,0.00023988,2]
[388399444,1759155616469,-278.0,0.00023988,2]
[388399445,1759155616498,-300.0,0.00023988,2]
[388399446,1759155616531,-1606.76830083,0.00023989,2]
[388399447,1759155616559,-171.81818016,0.00023989,2]
[388399448,1759155616588,-1200.0,0.00023989,2]
[388399449,1759155616992,-480.0,0.00023989,2]
[388399450,1759155617030,-480.0,0.00023989,2]
[388399451,1759155617060,-480.0,0.00023989,2]
[388399452,1759155617097,-480.0,0.00023989,2]
[388399453,1759155617127,-500.0,0.00023989,2]
[388399454,1759155617157,-500.0,0.00023989,2]
[388399455,1759155617188,-500.0,0.00023989,2]
[388399456,1759155617219,-500.0,0.00023989,2]
[388399457,1759155617249,-500.0,0.00023989,2]
[388399458,1759155617278,-248.79008488,0.00023989,2]
[388399459,1759155617307,-200.0,0.00023989,2]
[388399460,1759155617403,-500.0,0.00023989,2]
[388399461,1759155617433,-500.0,0.00023989,2]
[388399462,1759155617465,-500.0,0.00023989,2]
[388399463,1759155617497,-500.0,0.00023989,2]
[388399464,1759155617528,-500.0,0.00023989,2]
[388399465,1759155617558,-500.0,0.00023989,2]
[388399466,1759155617591,-500.0,0.00023989,2]
[388399467,1759155617621,-529.28844908,0.00023989,2]
[388399468,1759155617654,-500.0,0.00023989,2]
[388399469,1759155617684,-441.43310184,0.00023989,2]
[388399470,1759155617774,-58.56689816,0.00023989,2]
[388399471,1759155617805,-500.0,0.00023989,2]
[388399472,1759155617836,-500.0,0.00023989,2]
[388399473,1759155617869,-500.0,0.00023989,2]
[388399474,1759155617900,-333.28488515,0.00023989,2]
[388399475,1759155617931,-500.0,0.00023989,2]
[388399476,1759155617964,-500.0,0.00023989,2]
[388399477,1759155617999,-500.0,0.00023989,2]
[388399478,1759155618031,-500.0,0.00023989,2]
[388399479,1759155618063,-500.0,0.00023989,2]
[388399480,1759155618097,-500.0,0.00023989,2]
[388399481,1759155618198,-500.0,0.00023989,2]
[388399482,1759155618228,-383.46585545,0.00023989,2]
[388399483,1759155618257,-354.84991335,0.00023989,2]
[388399484,1759155618287,-500.0,0.00023989,2]
[388399485,1759155618317,-500.0,0.00023989,2]
[388399486,1759155618349,-500.0,0.00023989,2]
[388399487,1759155618383,-500.0,0.00023989,2]
[388399488,1759155618414,-500.0,0.00023989,2]
[388399489,1759155618445,-500.0,0.00023989,2]
[388399490,1759155618479,-500.0,0.00023989,2]
[388399491,1759155618510,-23.3784624,0.00023989,2]
[388399492,1759155618713,-476.6215376,0.00023989,2]
[388399493,1759155618743,-209.55554434,0.00023989,2]
[388399494,1759155618773,-500.0,0.00023989,2]
[388399495,1759155618808,-500.0,0.00023989,2]
[388399496,1759155618839,-500.0,0.00023989,2]
[388399497,1759155618873,-500.0,0.00023989,2]
[388399498,1759155618904,-500.0,0.00023989,2]
[388399499,1759155618936,-500.0,0.00023989,2]
[388399500,1759155618967,-500.0,0.00023989,2]
[388399501,1759155618999,-500.0,0.00023989,2]
[388399502,1759155619033,-127.65583612,0.00023989,2]
[388399503,1759155619408,-372.34416388,0.00023989,2]